[Event "*** SCC Grand Prix: Titled Tuesday Blitz"]
[Site "Chess.com"]
[Date "2020.10.06"]
[Round "2"]
[White "JoliyRoger"]
[Black "XDPS"]
[Result "0-1"]
[WhiteElo "2456"]
[BlackElo "2798"]
[TimeControl "180+1"]
[EndTime "10:16:51 PDT"]
[Termination "XDPS won by resignation"]

1. Nf3 {[%clk 0:03:00.9]} 1... d5 {[%clk 0:02:59.9]} 2. c4 {[%clk 0:03:01]} 2...
c6 {[%clk 0:03:00]} 3. e3 {[%clk 0:03:01]} 3... Nf6 {[%clk 0:03:00.4]} 4. b3
{[%clk 0:03:01.3]} 4... e6 {[%clk 0:03:01.1]} 5. Bb2 {[%clk 0:03:01.8]} 5... Bd6
{[%clk 0:03:01.7]} 6. d4 {[%clk 0:03:02.4]} 6... O-O {[%clk 0:03:01.9]} 7. Nbd2
{[%clk 0:03:02.9]} 7... b6 {[%clk 0:03:02.5]} 8. Bd3 {[%clk 0:03:03.5]} 8... Bb7
{[%clk 0:03:03.2]} 9. Qc2 {[%clk 0:03:04.1]} 9... Nbd7 {[%clk 0:03:03.7]} 10.
O-O {[%clk 0:03:04.8]} 10... Re8 {[%clk 0:03:04.3]} 11. Ne5 {[%clk 0:03:05.3]}
11... Qc7 {[%clk 0:03:04.1]} 12. f4 {[%clk 0:03:05.3]} 12... c5 {[%clk
0:03:04.6]} 13. Rae1 {[%clk 0:03:05]} 13... Rac8 {[%clk 0:03:01.4]} 14. Kh1
{[%clk 0:03:04.6]} 14... a6 {[%clk 0:03:00.5]} 15. Re2 {[%clk 0:02:59.8]} 15...
dxc4 {[%clk 0:02:57.6]} 16. bxc4 {[%clk 0:02:59.3]} 16... Nf8 {[%clk 0:02:48.7]}
17. Ndf3 {[%clk 0:02:50.6]} 17... h6 {[%clk 0:02:41.7]} 18. f5 {[%clk
0:02:00.6]} 18... exf5 {[%clk 0:02:37.4]} 19. Bxf5 {[%clk 0:02:00.9]} 19... Rcd8
{[%clk 0:02:38]} 20. d5 {[%clk 0:01:49.9]} 20... b5 {[%clk 0:02:32.8]} 21. e4
{[%clk 0:01:49.4]} 21... Bxe5 {[%clk 0:02:07]} 22. Nxe5 {[%clk 0:01:48.7]} 22...
Rxe5 {[%clk 0:02:07.9]} 23. cxb5 {[%clk 0:01:44.4]} 23... axb5 {[%clk
0:01:59.8]} 24. Bxe5 {[%clk 0:01:29.3]} 24... Qxe5 {[%clk 0:02:00.7]} 25. Qxc5
{[%clk 0:01:29.7]} 25... g6 {[%clk 0:01:20.2]} 26. Bh3 {[%clk 0:01:15.2]} 26...
Nxe4 {[%clk 0:01:09.9]} 27. Qxb5 {[%clk 0:01:14.9]} 27... Bxd5 {[%clk
0:01:06.3]} 28. a4 {[%clk 0:01:02.9]} 28... Qd4 {[%clk 0:01:00.9]} 29. Qa5
{[%clk 0:00:31.6]} 29... Ra8 {[%clk 0:00:53.9]} 30. Qc7 {[%clk 0:00:31.5]} 30...
Rxa4 {[%clk 0:00:42.5]} 31. Rfe1 {[%clk 0:00:26.9]} 31... Nf2+ {[%clk
0:00:35.6]} 0-1

[Event "*** SCC Grand Prix: Titled Tuesday Blitz"]
[Site "Chess.com"]
[Date "2020.10.06"]
[Round "2"]
[White "Artyom_ChessMate"]
[Black "AlexOstrovskiy"]
[Result "1/2-1/2"]
[WhiteElo "2517"]
[BlackElo "2750"]
[TimeControl "180+1"]
[EndTime "10:16:55 PDT"]
[Termination "Game drawn by repetition"]

1. e4 {[%clk 0:03:00.9]} 1... c6 {[%clk 0:02:57.2]} 2. d4 {[%clk 0:03:00.8]}
2... d5 {[%clk 0:02:58.1]} 3. exd5 {[%clk 0:03:01.7]} 3... cxd5 {[%clk
0:02:58.5]} 4. Bd3 {[%clk 0:03:02.6]} 4... Nc6 {[%clk 0:02:56.9]} 5. c3 {[%clk
0:03:03.5]} 5... Qc7 {[%clk 0:02:57.4]} 6. Ne2 {[%clk 0:03:03.1]} 6... Bg4
{[%clk 0:02:56.7]} 7. O-O {[%clk 0:03:04]} 7... e6 {[%clk 0:02:53.8]} 8. Qe1
{[%clk 0:03:04.3]} 8... g6 {[%clk 0:02:54.2]} 9. f3 {[%clk 0:03:03.2]} 9... Bf5
{[%clk 0:02:53.9]} 10. Bxf5 {[%clk 0:02:59.7]} 10... gxf5 {[%clk 0:02:52.1]} 11.
Bf4 {[%clk 0:02:50.9]} 11... Bd6 {[%clk 0:02:46.8]} 12. Qg3 {[%clk 0:02:51.1]}
12... O-O-O {[%clk 0:02:38.6]} 13. Bxd6 {[%clk 0:02:41.1]} 13... Qxd6 {[%clk
0:02:39.5]} 14. Qxd6 {[%clk 0:02:37.8]} 14... Rxd6 {[%clk 0:02:40.4]} 15. Nf4
{[%clk 0:02:35.9]} 15... Nge7 {[%clk 0:02:35.6]} 16. Nd3 {[%clk 0:02:35.8]}
16... Rdd8 {[%clk 0:02:24.9]} 17. Nd2 {[%clk 0:02:34.3]} 17... h5 {[%clk
0:02:24.2]} 18. Rae1 {[%clk 0:02:26.8]} 18... h4 {[%clk 0:02:22.7]} 19. h3
{[%clk 0:02:26.6]} 19... Kc7 {[%clk 0:02:17.5]} 20. Re2 {[%clk 0:02:26.2]} 20...
Rdg8 {[%clk 0:02:17.5]} 21. Rfe1 {[%clk 0:02:23.1]} 21... Rg7 {[%clk 0:02:17.9]}
22. Nf4 {[%clk 0:02:20.7]} 22... Ng8 {[%clk 0:02:12.9]} 23. Rxe6 {[%clk
0:02:17.4]} 23... Rxg2+ {[%clk 0:02:01.5]} 24. Kxg2 {[%clk 0:02:14.3]} 24...
fxe6 {[%clk 0:02:02.4]} 25. Nxe6+ {[%clk 0:01:59.4]} 25... Kd6 {[%clk
0:01:58.2]} 26. Nf4 {[%clk 0:01:59.6]} 26... Rh6 {[%clk 0:01:34.8]} 27. Nb3
{[%clk 0:01:46.3]} 27... Nge7 {[%clk 0:01:33]} 28. Nc5 {[%clk 0:01:45.6]} 28...
Nd8 {[%clk 0:01:32.5]} 29. Re5 {[%clk 0:01:40.2]} 29... b6 {[%clk 0:01:17.1]}
30. Ncd3 {[%clk 0:01:38.3]} 30... a5 {[%clk 0:01:12.5]} 31. b4 {[%clk
0:01:26.5]} 31... Ndc6 {[%clk 0:01:02.4]} 32. Re2 {[%clk 0:01:18.2]} 32... axb4
{[%clk 0:00:52.8]} 33. Nxb4 {[%clk 0:01:18.9]} 33... Nxb4 {[%clk 0:00:53.3]} 34.
cxb4 {[%clk 0:01:17]} 34... Nc6 {[%clk 0:00:54.2]} 35. a3 {[%clk 0:01:08.3]}
35... Nxd4 {[%clk 0:00:50.1]} 36. Rd2 {[%clk 0:01:01.6]} 36... Ke5 {[%clk
0:00:49.5]} 37. Nd3+ {[%clk 0:01:01.7]} 37... Kd6 {[%clk 0:00:45.4]} 38. Nf4
{[%clk 0:01:01.2]} 38... Ke5 {[%clk 0:00:30.8]} 39. Nd3+ {[%clk 0:00:59.3]}
39... Kd6 {[%clk 0:00:25.4]} 40. Nf4 {[%clk 0:00:56]} 1/2-1/2

[Event "*** SCC Grand Prix: Titled Tuesday Blitz"]
[Site "Chess.com"]
[Date "2020.10.06"]
[Round "2"]
[White "aisha_zakirova"]
[Black "Eliwood44"]
[Result "0-1"]
[WhiteElo "2192"]
[BlackElo "2409"]
[TimeControl "180+1"]
[EndTime "10:16:59 PDT"]
[Termination "Eliwood44 won by resignation"]

1. d4 {[%clk 0:03:00.9]} 1... Nf6 {[%clk 0:02:55.6]} 2. c4 {[%clk 0:03:00.3]}
2... e6 {[%clk 0:02:52.7]} 3. Nf3 {[%clk 0:02:59.7]} 3... b6 {[%clk 0:02:34.2]}
4. g3 {[%clk 0:02:42.6]} 4... Ba6 {[%clk 0:02:33.6]} 5. Qc2 {[%clk 0:02:41.2]}
5... Bb4+ {[%clk 0:02:28.3]} 6. Bd2 {[%clk 0:02:38.7]} 6... Bxd2+ {[%clk
0:02:23.6]} 7. Nbxd2 {[%clk 0:02:36]} 7... O-O {[%clk 0:02:22.4]} 8. Bg2 {[%clk
0:02:34.4]} 8... d5 {[%clk 0:02:22.7]} 9. O-O {[%clk 0:02:22.7]} 9... c6 {[%clk
0:02:21.2]} 10. Ne5 {[%clk 0:02:18.7]} 10... Nfd7 {[%clk 0:02:15.3]} 11. Nxd7
{[%clk 0:01:27.1]} 11... Nxd7 {[%clk 0:02:16.2]} 12. Rfe1 {[%clk 0:01:25.5]}
12... Rc8 {[%clk 0:02:14.4]} 13. Qa4 {[%clk 0:01:18]} 13... Bxc4 {[%clk
0:02:08.8]} 14. Nxc4 {[%clk 0:01:16.3]} 14... b5 {[%clk 0:02:09.1]} 15. Qxa7
{[%clk 0:00:57.1]} 15... bxc4 {[%clk 0:02:08.2]} 16. Qa3 {[%clk 0:00:55.1]}
16... Qb6 {[%clk 0:01:54.8]} 17. Qc3 {[%clk 0:00:48.5]} 17... Rb8 {[%clk
0:01:34.4]} 18. Rab1 {[%clk 0:00:46.3]} 18... f5 {[%clk 0:01:34.3]} 19. Kh1
{[%clk 0:00:40.5]} 19... c5 {[%clk 0:01:29.5]} 20. e3 {[%clk 0:00:33.9]} 20...
Nf6 {[%clk 0:01:28.4]} 21. b3 {[%clk 0:00:26]} 21... Kh8 {[%clk 0:01:10.6]} 22.
bxc4 {[%clk 0:00:24.8]} 22... Qxb1 {[%clk 0:01:10.6]} 23. Rxb1 {[%clk
0:00:24.1]} 23... Rxb1+ {[%clk 0:01:11.5]} 24. Bf1 {[%clk 0:00:23.3]} 24...
Rxf1+ {[%clk 0:01:11.6]} 25. Kg2 {[%clk 0:00:23.6]} 25... Rxf2+ {[%clk
0:01:12.1]} 26. Kg1 {[%clk 0:00:22]} 26... cxd4 {[%clk 0:01:06.7]} 27. Qxd4
{[%clk 0:00:19.9]} 27... Rxa2 {[%clk 0:01:04.9]} 28. c5 {[%clk 0:00:18.9]} 28...
Rb8 {[%clk 0:01:03.6]} 29. Qd1 {[%clk 0:00:16.9]} 29... Rab2 {[%clk 0:01:00.3]}
30. c6 {[%clk 0:00:10.4]} 30... Rb1 {[%clk 0:00:59.4]} 31. Qxb1 {[%clk 0:00:10]}
31... Rxb1+ {[%clk 0:01:00.3]} 32. Kg2 {[%clk 0:00:10.3]} 32... Rc1 {[%clk
0:01:00.8]} 33. c7 {[%clk 0:00:09.8]} 33... Rxc7 {[%clk 0:01:00.4]} 34. Kh3
{[%clk 0:00:09.5]} 34... Rc2 {[%clk 0:00:58.7]} 0-1

[Event "*** SCC Grand Prix: Titled Tuesday Blitz"]
[Site "Chess.com"]
[Date "2020.10.06"]
[Round "2"]
[White "kot60"]
[Black "tsvet2005"]
[Result "1-0"]
[WhiteElo "2431"]
[BlackElo "2673"]
[TimeControl "180+1"]
[EndTime "10:17:00 PDT"]
[Termination "kot60 won by resignation"]

1. e4 {[%clk 0:03:00.9]} 1... c5 {[%clk 0:03:00]} 2. Nc3 {[%clk 0:03:00.6]} 2...
d6 {[%clk 0:02:59.7]} 3. Bc4 {[%clk 0:03:00.5]} 3... Nf6 {[%clk 0:02:58.1]} 4.
d3 {[%clk 0:03:00.9]} 4... a6 {[%clk 0:02:57.6]} 5. a4 {[%clk 0:03:00.5]} 5...
e6 {[%clk 0:02:57.7]} 6. Nge2 {[%clk 0:02:59.6]} 6... Be7 {[%clk 0:02:56.9]} 7.
O-O {[%clk 0:02:58.8]} 7... Nbd7 {[%clk 0:02:57.3]} 8. h3 {[%clk 0:02:58.4]}
8... O-O {[%clk 0:02:57.2]} 9. Bb3 {[%clk 0:02:56]} 9... b6 {[%clk 0:02:56.2]}
10. Bg5 {[%clk 0:02:55]} 10... Bb7 {[%clk 0:02:55.8]} 11. f4 {[%clk 0:02:54.5]}
11... h6 {[%clk 0:02:46.5]} 12. Bh4 {[%clk 0:02:50.3]} 12... Nxe4 {[%clk
0:02:24.9]} 13. dxe4 {[%clk 0:02:34.1]} 13... Bxh4 {[%clk 0:02:23.8]} 14. Qxd6
{[%clk 0:02:34]} 14... Be7 {[%clk 0:02:21.9]} 15. Qd3 {[%clk 0:02:31.3]} 15...
Qc7 {[%clk 0:02:19]} 16. f5 {[%clk 0:02:24.7]} 16... c4 {[%clk 0:01:57.2]} 17.
Bxc4 {[%clk 0:02:17.5]} 17... Ne5 {[%clk 0:01:56.2]} 18. Qg3 {[%clk 0:02:14]}
18... Qc5+ {[%clk 0:01:49]} 19. Kh1 {[%clk 0:02:10.6]} 19... Nxc4 {[%clk
0:01:20.2]} 20. f6 {[%clk 0:02:09.7]} 20... Bxf6 {[%clk 0:01:16.9]} 21. Rxf6
{[%clk 0:02:08.6]} 21... Nxb2 {[%clk 0:01:14.6]} 22. Rxh6 {[%clk 0:02:00.4]}
22... Rad8 {[%clk 0:01:09.9]} 23. Nf4 {[%clk 0:01:32.3]} 23... Nc4 {[%clk
0:00:57.3]} 24. Nh5 {[%clk 0:01:30.9]} 24... Qe5 {[%clk 0:00:13.6]} 25. Nf6+
{[%clk 0:01:28.1]} 25... Qxf6 {[%clk 0:00:13.8]} 26. Rxf6 {[%clk 0:01:28.1]}
26... Nd2 {[%clk 0:00:14.1]} 27. Rf4 {[%clk 0:01:22.3]} 27... Rd4 {[%clk
0:00:12.1]} 28. Re1 {[%clk 0:01:18.9]} 28... Rfd8 {[%clk 0:00:11.1]} 29. Rg4
{[%clk 0:01:15.5]} 29... g6 {[%clk 0:00:10.9]} 30. h4 {[%clk 0:01:14.3]} 30...
Kg7 {[%clk 0:00:05.5]} 31. Kg1 {[%clk 0:01:11.4]} 31... Nc4 {[%clk 0:00:02.1]}
32. e5 {[%clk 0:01:00.9]} 32... Rxg4 {[%clk 0:00:01.8]} 33. Qxg4 {[%clk
0:01:00.7]} 33... b5 {[%clk 0:00:02.1]} 34. Ne4 {[%clk 0:00:56]} 34... Bxe4
{[%clk 0:00:02.1]} 35. Rxe4 {[%clk 0:00:53.9]} 35... Nd2 {[%clk 0:00:02.8]} 36.
Rd4 {[%clk 0:00:53.1]} 1-0

[Event "*** SCC Grand Prix: Titled Tuesday Blitz"]
[Site "Chess.com"]
[Date "2020.10.06"]
[Round "2"]
[White "Gabrielian_Artur"]
[Black "SamuelGhimpu2003"]
[Result "1-0"]
[WhiteElo "2748"]
[BlackElo "2501"]
[TimeControl "180+1"]
[EndTime "10:17:03 PDT"]
[Termination "Gabrielian_Artur won by resignation"]

1. e4 {[%clk 0:03:00.9]} 1... e6 {[%clk 0:02:59.6]} 2. d4 {[%clk 0:03:00.2]}
2... d5 {[%clk 0:03:00.5]} 3. e5 {[%clk 0:03:00.5]} 3... c5 {[%clk 0:02:59.4]}
4. c3 {[%clk 0:03:00.5]} 4... Qb6 {[%clk 0:02:57.6]} 5. Nf3 {[%clk 0:02:59.9]}
5... Bd7 {[%clk 0:02:56.8]} 6. Be2 {[%clk 0:02:59]} 6... Nc6 {[%clk 0:02:49.5]}
7. a3 {[%clk 0:02:54.8]} 7... c4 {[%clk 0:02:48.2]} 8. Nbd2 {[%clk 0:02:54]}
8... Na5 {[%clk 0:02:47.7]} 9. Qc2 {[%clk 0:02:52.3]} 9... h6 {[%clk 0:02:45.1]}
10. Rb1 {[%clk 0:02:52]} 10... Ne7 {[%clk 0:02:37.6]} 11. O-O {[%clk 0:02:49.5]}
11... Qc7 {[%clk 0:02:35.2]} 12. b3 {[%clk 0:02:47.8]} 12... cxb3 {[%clk
0:02:32.9]} 13. Nxb3 {[%clk 0:02:46.8]} 13... Ba4 {[%clk 0:02:27.7]} 14. Nfd2
{[%clk 0:02:46.7]} 14... Rc8 {[%clk 0:02:21]} 15. Qd3 {[%clk 0:02:32.3]} 15...
Ng6 {[%clk 0:01:37.2]} 16. Nxa5 {[%clk 0:02:24.8]} 16... Qxa5 {[%clk 0:01:38.1]}
17. Rxb7 {[%clk 0:02:23.6]} 17... Nf4 {[%clk 0:01:12]} 18. Qf3 {[%clk
0:02:17.8]} 18... Nxe2+ {[%clk 0:01:10.4]} 19. Qxe2 {[%clk 0:02:17.9]} 19... Be7
{[%clk 0:00:54.4]} 20. Qg4 {[%clk 0:02:09.2]} 20... g6 {[%clk 0:00:50.3]} 21.
Nf3 {[%clk 0:02:04.2]} 21... Bc6 {[%clk 0:00:45.3]} 22. Rxe7+ {[%clk 0:01:16]}
22... Kxe7 {[%clk 0:00:46.2]} 23. Bxh6 {[%clk 0:01:15.4]} 23... Bb5 {[%clk
0:00:17.7]} 24. Rb1 {[%clk 0:01:14.3]} 24... Qxc3 {[%clk 0:00:14.4]} 25. h4
{[%clk 0:01:12.7]} 25... Bd3 {[%clk 0:00:12.7]} 26. Rb7+ {[%clk 0:01:07.3]}
26... Rc7 {[%clk 0:00:12.7]} 27. Rxc7+ {[%clk 0:01:05.9]} 27... Qxc7 {[%clk
0:00:13.6]} 28. Qf4 {[%clk 0:01:02.5]} 28... Rg8 {[%clk 0:00:06.5]} 29. Bg5+
{[%clk 0:01:01.6]} 29... Ke8 {[%clk 0:00:06.8]} 30. Qf6 {[%clk 0:00:59.8]} 30...
Bf5 {[%clk 0:00:05.1]} 31. Kh2 {[%clk 0:00:59.7]} 31... a5 {[%clk 0:00:04.9]}
32. Ng1 {[%clk 0:00:54.2]} 32... Rf8 {[%clk 0:00:05.5]} 33. Ne2 {[%clk
0:00:52.8]} 33... Kd7 {[%clk 0:00:05.9]} 34. Qe7+ {[%clk 0:00:52.2]} 1-0

[Event "*** SCC Grand Prix: Titled Tuesday Blitz"]
[Site "Chess.com"]
[Date "2020.10.06"]
[Round "2"]
[White "Miss_JJ20"]
[Black "Zemerovv"]
[Result "1-0"]
[WhiteElo "2466"]
[BlackElo "2279"]
[TimeControl "180+1"]
[EndTime "10:17:07 PDT"]
[Termination "Miss_JJ20 won by resignation"]

1. d4 {[%clk 0:03:00.9]} 1... g6 {[%clk 0:02:58.7]} 2. c4 {[%clk 0:03:01]} 2...
Bg7 {[%clk 0:02:59.6]} 3. g3 {[%clk 0:03:00.5]} 3... d6 {[%clk 0:02:59.7]} 4.
Bg2 {[%clk 0:03:00.7]} 4... Nc6 {[%clk 0:03:00]} 5. e3 {[%clk 0:02:54.4]} 5...
e5 {[%clk 0:02:58.1]} 6. d5 {[%clk 0:02:54]} 6... Nce7 {[%clk 0:02:57.4]} 7. Nc3
{[%clk 0:02:54.3]} 7... f5 {[%clk 0:02:57.4]} 8. Nge2 {[%clk 0:02:55]} 8... Nf6
{[%clk 0:02:57.5]} 9. O-O {[%clk 0:02:54.8]} 9... g5 {[%clk 0:02:55.9]} 10. f4
{[%clk 0:02:52.8]} 10... gxf4 {[%clk 0:02:55.9]} 11. exf4 {[%clk 0:02:53.7]}
11... e4 {[%clk 0:02:55.6]} 12. Be3 {[%clk 0:02:54.4]} 12... h5 {[%clk
0:02:55.4]} 13. Bd4 {[%clk 0:01:57.9]} 13... Ng6 {[%clk 0:02:48.6]} 14. Qc2
{[%clk 0:01:40.8]} 14... Kf7 {[%clk 0:02:46.6]} 15. Rad1 {[%clk 0:01:39]} 15...
h4 {[%clk 0:02:45.7]} 16. b4 {[%clk 0:01:33.3]} 16... hxg3 {[%clk 0:02:44.4]}
17. hxg3 {[%clk 0:01:34.2]} 17... Ng4 {[%clk 0:02:43.8]} 18. Qd2 {[%clk
0:01:16.2]} 18... Qg8 {[%clk 0:02:40.2]} 19. Rfe1 {[%clk 0:00:33]} 19... Qh7
{[%clk 0:02:38.9]} 20. Kf1 {[%clk 0:00:33.5]} 20... Bd7 {[%clk 0:02:27]} 21. Bg1
{[%clk 0:00:28.4]} 21... Nh2+ {[%clk 0:02:22]} 22. Bxh2 {[%clk 0:00:18.7]} 22...
Qxh2 {[%clk 0:02:20.1]} 23. Nd4 {[%clk 0:00:19.4]} 23... Qxg3 {[%clk 0:02:14.2]}
24. Nce2 {[%clk 0:00:19.8]} 24... Qg4 {[%clk 0:02:06.6]} 25. Qe3 {[%clk
0:00:12]} 25... Rh2 {[%clk 0:02:02.9]} 26. Qg3 {[%clk 0:00:11.9]} 26... Qxg3
{[%clk 0:01:56.4]} 27. Nxg3 {[%clk 0:00:12.8]} 27... Rah8 {[%clk 0:01:55.5]} 28.
Ndxf5 {[%clk 0:00:10.6]} 28... Nxf4 {[%clk 0:01:50.3]} 29. Bxe4 {[%clk
0:00:09.7]} 29... Bc3 {[%clk 0:01:42.6]} 30. Re3 {[%clk 0:00:09.2]} 30... Bxb4
{[%clk 0:01:36.2]} 31. Rf3 {[%clk 0:00:09.8]} 31... Rh1+ {[%clk 0:01:19.1]} 32.
Nxh1 {[%clk 0:00:09.5]} 32... Rxh1+ {[%clk 0:01:18.7]} 33. Kf2 {[%clk
0:00:10.1]} 33... Rh2+ {[%clk 0:01:18.4]} 34. Kg3 {[%clk 0:00:10.1]} 34... Rh3+
{[%clk 0:01:10.4]} 35. Kxf4 {[%clk 0:00:10.2]} 35... Bd2+ {[%clk 0:01:07]} 36.
Rxd2 {[%clk 0:00:09.5]} 36... Kf6 {[%clk 0:01:06.5]} 37. Rxh3 {[%clk 0:00:09.2]}
37... Bxf5 {[%clk 0:01:05.7]} 38. Bxf5 {[%clk 0:00:10.1]} 38... Kg7 {[%clk
0:01:05.7]} 39. Rg2+ {[%clk 0:00:09.7]} 39... Kf8 {[%clk 0:01:04.3]} 40. Rh7
{[%clk 0:00:09.4]} 40... c5 {[%clk 0:01:02.5]} 41. Be6 {[%clk 0:00:09.7]} 1-0

[Event "*** SCC Grand Prix: Titled Tuesday Blitz"]
[Site "Chess.com"]
[Date "2020.10.06"]
[Round "2"]
[White "grzechu96"]
[Black "ferdipy"]
[Result "1-0"]
[WhiteElo "2675"]
[BlackElo "2370"]
[TimeControl "180+1"]
[EndTime "10:17:09 PDT"]
[Termination "grzechu96 won by resignation"]

1. e4 {[%clk 0:03:00.9]} 1... e6 {[%clk 0:03:00.2]} 2. d4 {[%clk 0:03:00.6]}
2... d5 {[%clk 0:02:59.9]} 3. Nc3 {[%clk 0:03:01.2]} 3... Bb4 {[%clk 0:02:55.1]}
4. exd5 {[%clk 0:03:01.4]} 4... exd5 {[%clk 0:02:54.7]} 5. Bd3 {[%clk
0:03:01.7]} 5... c6 {[%clk 0:02:55.1]} 6. Ne2 {[%clk 0:02:56.1]} 6... Ne7 {[%clk
0:02:55.6]} 7. Ng3 {[%clk 0:02:53.8]} 7... Bd6 {[%clk 0:02:54.6]} 8. Nce2 {[%clk
0:02:52.9]} 8... Na6 {[%clk 0:02:49.1]} 9. c3 {[%clk 0:02:52.6]} 9... Nc7 {[%clk
0:02:48.1]} 10. Bf4 {[%clk 0:02:50.4]} 10... Ne6 {[%clk 0:02:47.7]} 11. Bxd6
{[%clk 0:02:49.3]} 11... Qxd6 {[%clk 0:02:48.6]} 12. Qd2 {[%clk 0:02:49.7]}
12... Bd7 {[%clk 0:02:48.1]} 13. f4 {[%clk 0:02:48.4]} 13... O-O-O {[%clk
0:02:14.6]} 14. f5 {[%clk 0:02:47]} 14... Nc7 {[%clk 0:02:14]} 15. O-O-O {[%clk
0:02:45.8]} 15... h5 {[%clk 0:02:09.9]} 16. h4 {[%clk 0:02:43.8]} 16... f6
{[%clk 0:02:04.5]} 17. Nf4 {[%clk 0:02:32]} 17... Rde8 {[%clk 0:01:54.5]} 18.
Nfxh5 {[%clk 0:02:23.4]} 18... Kb8 {[%clk 0:01:40.7]} 19. Nf4 {[%clk 0:01:56.7]}
19... Nb5 {[%clk 0:01:10.6]} 20. Qf2 {[%clk 0:01:47.2]} 20... Qc7 {[%clk
0:01:05]} 21. Bxb5 {[%clk 0:01:12.9]} 21... cxb5 {[%clk 0:01:04.7]} 22. Nd3
{[%clk 0:01:13.3]} 22... Ka8 {[%clk 0:00:59.9]} 23. Kb1 {[%clk 0:01:11.2]} 23...
b6 {[%clk 0:00:52]} 24. Rdf1 {[%clk 0:01:09.6]} 24... Nc6 {[%clk 0:00:50.4]} 25.
Qf4 {[%clk 0:01:03.7]} 25... Qb7 {[%clk 0:00:48.3]} 26. Re1 {[%clk 0:00:57.3]}
26... Qa6 {[%clk 0:00:47.6]} 27. Nb4 {[%clk 0:00:21.2]} 27... Nxb4 {[%clk
0:00:39.1]} 28. cxb4 {[%clk 0:00:22.1]} 28... Qa4 {[%clk 0:00:39.3]} 29. Qd6
{[%clk 0:00:18.6]} 29... Bc8 {[%clk 0:00:32.4]} 30. Rxe8 {[%clk 0:00:18.1]}
30... Rxe8 {[%clk 0:00:32.1]} 31. Qc6+ {[%clk 0:00:18.7]} 31... Bb7 {[%clk
0:00:31.5]} 32. Qxe8+ {[%clk 0:00:19.1]} 1-0

[Event "*** SCC Grand Prix: Titled Tuesday Blitz"]
[Site "Chess.com"]
[Date "2020.10.06"]
[Round "2"]
[White "diablanni"]
[Black "Carnivoras"]
[Result "0-1"]
[WhiteElo "2385"]
[BlackElo "2675"]
[TimeControl "180+1"]
[EndTime "10:17:12 PDT"]
[Termination "Carnivoras won on time"]

1. e4 {[%clk 0:02:59.3]} 1... e6 {[%clk 0:00:39.9]} 2. d4 {[%clk 0:02:58.1]}
2... d5 {[%clk 0:00:40.2]} 3. Nc3 {[%clk 0:02:57.2]} 3... Nf6 {[%clk 0:00:39.5]}
4. e5 {[%clk 0:02:56.7]} 4... Nfd7 {[%clk 0:00:39.7]} 5. f4 {[%clk 0:02:56]}
5... c5 {[%clk 0:00:37.9]} 6. Nf3 {[%clk 0:02:55.2]} 6... Nc6 {[%clk 0:00:38.1]}
7. Be3 {[%clk 0:02:54.3]} 7... a6 {[%clk 0:00:37.1]} 8. Qd2 {[%clk 0:02:53.6]}
8... b5 {[%clk 0:00:37.1]} 9. dxc5 {[%clk 0:02:53]} 9... Bxc5 {[%clk 0:00:35.6]}
10. Bd3 {[%clk 0:02:51.5]} 10... Bb7 {[%clk 0:00:35.2]} 11. Bxc5 {[%clk
0:02:04.1]} 11... Nxc5 {[%clk 0:00:36.1]} 12. Qf2 {[%clk 0:02:02.5]} 12... d4
{[%clk 0:00:30.5]} 13. Ne2 {[%clk 0:01:58.8]} 13... Nxd3+ {[%clk 0:00:27]} 14.
cxd3 {[%clk 0:01:58.4]} 14... Qa5+ {[%clk 0:00:25.9]} 15. Kf1 {[%clk 0:01:50.8]}
15... O-O {[%clk 0:00:25.8]} 16. h3 {[%clk 0:01:39.2]} 16... Rac8 {[%clk
0:00:24.2]} 17. Kg1 {[%clk 0:01:38.9]} 17... Qb4 {[%clk 0:00:20.7]} 18. Nexd4
{[%clk 0:01:33.1]} 18... Rfd8 {[%clk 0:00:20.2]} 19. a3 {[%clk 0:01:31.7]} 19...
Qa4 {[%clk 0:00:19.6]} 20. b4 {[%clk 0:01:22.4]} 20... Nxd4 {[%clk 0:00:17.1]}
21. Nxd4 {[%clk 0:01:21.9]} 21... Rc3 {[%clk 0:00:17.7]} 22. Qd2 {[%clk
0:00:46.7]} 22... Rxa3 {[%clk 0:00:17.3]} 23. Rc1 {[%clk 0:00:07.3]} 23... Rxd4
{[%clk 0:00:15.8]} 0-1

[Event "*** SCC Grand Prix: Titled Tuesday Blitz"]
[Site "Chess.com"]
[Date "2020.10.06"]
[Round "2"]
[White "GMJustin"]
[Black "MPGM"]
[Result "0-1"]
[WhiteElo "2250"]
[BlackElo "2453"]
[TimeControl "180+1"]
[EndTime "10:17:16 PDT"]
[Termination "MPGM won on time"]

1. d4 {[%clk 0:02:56.3]} 1... d5 {[%clk 0:02:58.7]} 2. c4 {[%clk 0:02:48.2]}
2... e6 {[%clk 0:02:56.5]} 3. Nc3 {[%clk 0:02:44.4]} 3... c5 {[%clk 0:02:55.8]}
4. cxd5 {[%clk 0:02:43.1]} 4... exd5 {[%clk 0:02:56.7]} 5. Nf3 {[%clk
0:02:33.2]} 5... Nc6 {[%clk 0:02:53.4]} 6. g3 {[%clk 0:02:28]} 6... Nf6 {[%clk
0:02:49.9]} 7. Bg2 {[%clk 0:02:25.9]} 7... cxd4 {[%clk 0:02:50.3]} 8. Nxd4
{[%clk 0:02:24.7]} 8... Bc5 {[%clk 0:02:50.8]} 9. Nxc6 {[%clk 0:02:13.6]} 9...
bxc6 {[%clk 0:02:51.7]} 10. O-O {[%clk 0:02:11.9]} 10... O-O {[%clk 0:02:50]}
11. Qc2 {[%clk 0:02:10]} 11... Bb6 {[%clk 0:02:38.7]} 12. Na4 {[%clk 0:02:03.7]}
12... Re8 {[%clk 0:02:28]} 13. Nxb6 {[%clk 0:01:52.5]} 13... Qxb6 {[%clk
0:02:27.5]} 14. b3 {[%clk 0:01:39.9]} 14... Ba6 {[%clk 0:02:23.2]} 15. Re1
{[%clk 0:01:15.7]} 15... Re6 {[%clk 0:01:55.6]} 16. Ba3 {[%clk 0:01:10.7]} 16...
Ne4 {[%clk 0:01:50]} 17. e3 {[%clk 0:01:04.8]} 17... Rae8 {[%clk 0:01:35]} 18.
Rac1 {[%clk 0:01:01.4]} 18... Rf6 {[%clk 0:01:26.6]} 19. Bc5 {[%clk 0:00:48.7]}
19... Qc7 {[%clk 0:01:08.7]} 20. Bd4 {[%clk 0:00:34.2]} 20... Rg6 {[%clk
0:01:02.6]} 21. f3 {[%clk 0:00:21.4]} 21... Ng5 {[%clk 0:00:51.9]} 22. e4 {[%clk
0:00:17.7]} 22... dxe4 {[%clk 0:00:47.9]} 23. fxe4 {[%clk 0:00:17.7]} 23... h5
{[%clk 0:00:44.5]} 24. e5 {[%clk 0:00:11.9]} 24... h4 {[%clk 0:00:44]} 25. Qf5
{[%clk 0:00:04.9]} 25... hxg3 {[%clk 0:00:41.5]} 26. hxg3 {[%clk 0:00:04.6]}
26... Bc8 {[%clk 0:00:34.3]} 27. Qf4 {[%clk 0:00:01]} 27... Ne6 {[%clk
0:00:33.2]} 28. Qf2 {[%clk 0:00:00.7]} 28... Nxd4 {[%clk 0:00:32.8]} 0-1